[Event "FIDE WCCC G10 2018"]
[Site "Santiago de Compostela"]
[Date "2018.11.08"]
[Round "4"]
[White "Edithso, Samantha"]
[Black "Szczotka, Klara"]
[Result "0-1"]
[ECO "B40"]
[WhiteElo "1879"]
[BlackElo "1581"]
[Annotator "NA"]
[PlyCount "116"]
[EventDate "2018.11.04"]
[EventType "swiss"]
[EventCountry "ESP"]
[SourceTitle "playchess.com"]
[Source "ChessBase"]
[SourceQuality "1"]
[TimeControl "40/5400+30:1800+30"]

{[%evp 8,116,-22,-23,32767,32767,32767,32767,32767,32767,32767,32767,32767,32767,463,505,557,627,587,32767,677,633,584,653,788,524,513,338,485,320,524,210,329,135,140,137,32767,32767,207,236,219,59,71,36,42,21,39,40,40,0,0,0,-7,-6,0,-89,-100,-156,-177,-229,32767,-208,-258,-232,-86,-441,32767,32767,32767,32767,32767,-484,-442,-463,-479,-534,32767,-537,-778,32767,-631,-600,-784,-1066,-1495,-954,-1618,-757,-832,-1239,-2421,-1539,32767,32767,-5958,-1476,32767,-6107,-29961,-29975,32767,-12829,-29973,32767,-29974,-29982,-29974,-29978,-29982,-29984,-29986]} 1. e4 {[%emt 0:00:00]} c5 {[%emt 0:00:00]} 2. Nf3 {[%emt 0:00:00]} e6 {[%emt 0:00:00]} 3. d4 {[%emt 0:00:00]} cxd4 {[%emt 0:00:00]} 4. c3 {[%emt 0:00:03]} dxc3 {[%emt 0:00:00] LiveBook: 50 Games} 5. Nxc3 {[%emt 0:00:02]} Nc6 {[%emt 0:00:09]} 6. Bc4 {[%emt 0:00:40]} a6 {[%emt 0:00:37]} 7. O-O {[%emt 0:00:17]} d6 {[%emt 0:00:53]} 8. Bf4 {[%emt 0:00:43] B21: Sicilian: 2 f4 and Morra Gambit} (8. Qe2 Nf6 9. Rd1 Nd7 10. Bf4 Qc7 11. Rac1 Be7 12. Nd5 exd5 13. exd5 Nb6 14. dxc6 Nxc4 15. Qxc4 O-O 16. Qe4 bxc6 17. Qxc6 Qxc6 18. Rxc6 {0-1 (39) Domingo Nunez,A (2373)-Ljubojevic,L (2571) Linares 2018}) 8... Be7 {[%emt 0:01:56]} 9. Qd2 {[%emt 0:00:41]} Qc7 {[%emt 0:00:42]} 10. Rac1 $146 {[%emt 0:01:29]} ({Predecessor:} 10. Rfd1 Ne5 11. Bxe5 dxe5 12. Rac1 Qb8 13. a4 b6 14. b4 h6 {0-1 (61) Nilsson,N-Bjerring,K (2325) Helsingor 1981}) 10... Ne5 $2 {[%emt 0:07:05]} (10... Nf6 $11) 11. Bxe5 {[%emt 0:00:30]} dxe5 {[%emt 0:00:06] [#]} 12. Nb5 $1 {[%emt 0:02:18]} Qb8 {[%emt 0:05:12] [#]} 13. Nc7+ $1 {[%emt 0:00:29]} Kf8 {[%emt 0:00:33]} 14. Nxa8 {[%emt 0:00:05]} Qxa8 {[%emt 0:00:05]} 15. Nxe5 {[%emt 0:00:50]} Nf6 {[%emt 0:00:27]} 16. Qf4 {[%emt 0:01:39]} h6 {[%emt 0:01:47]} 17. Rfd1 {[%emt 0:01:15]} g5 {[%emt 0:00:52]} 18. Qf3 {[%emt 0:00:17]} Kg7 $2 {[%emt 0:00:15] [#]} (18... Qb8) 19. Ng4 $2 {[%emt 0:02:26]} (19. Nxf7 $1 {[%mdl 512]} Kxf7 20. e5) 19... h5 {[%emt 0:04:46]} (19... Nxg4 {was worth a try.} 20. Qxg4 b5) 20. Ne3 {[%emt 0:03:16]} (20. Nxf6 $18 {is the precise move to win.} Bxf6 21. Qg3) 20... b5 {[%emt 0:00:58]} 21. Bd3 {[%emt 0:00:26]} Bb7 {[%emt 0:00:31]} 22. Qg3 {[%emt 0:00:50]} Nxe4 {[%emt 0:03:12]} 23. Bxe4 {[%emt 0:00:14]} Bxe4 {[%emt 0:00:08]} 24. f3 $2 {[%emt 0:00:29]} (24. Rc7 $18 Bf6 25. h4) 24... Bg6 $1 {[%emt 0:00:47]} 25. b3 {[%emt 0:02:48]} Bf6 {[%emt 0:02:58]} 26. Qf2 {[%emt 0:01:49]} Rc8 {[%emt 0:04:31]} 27. Rxc8 {[%emt 0:00:31]} Qxc8 {[%emt 0:00:04]} 28. g4 {[%emt 0:01:01]} h4 {[%emt 0:00:32]} 29. f4 {[%emt 0:01:29]} gxf4 30. Qxf4 {[%emt 0:00:46]} Qc5 {[%emt 0:01:58]} 31. b4 {[%emt 0:01:35] [#]} (31. Kg2 $11 {remains equal.}) 31... Qc3 $1 {[%emt 0:06:07]} 32. Ng2 {[%emt 0:07:22] [#]} h3 $1 {[%emt 0:05:57]} 33. g5 {[%emt 0:02:44]} (33. Ne3 $17 {was worth a try.}) 33... Be5 {[%emt 0:02:50]} 34. Qh4 {[%emt 0:00:32]} Kf8 {[%emt 0:04:04]} 35. Ne1 {[%emt 0:04:29]} Bc2 $2 {[%emt 0:16:31]} (35... Ke8 $19 36. Qf2 Bh5) 36. Rd7 $2 {[%emt 0:05:11]} (36. Rd8+ $17 {was the crucial defense.} Ke7 37. g6+ Bf6 38. gxf7 Kxf7 39. Qf2) 36... Ke8 {[%emt 0:05:42]} 37. Qf2 {[%emt 0:07:46]} Kxd7 {[%emt 0:03:17]} 38. Nxc2 {[%emt 0:00:06]} Ke7 {[%emt 0:03:17]} 39. a3 {[%emt 0:03:17]} Qd3 {[%emt 0:08:39]} 40. Qc5+ {[%emt 0:00:00]} Qd6 {[%emt 0:00:00]} 41. Qxd6+ {[%emt 0:03:14]} Kxd6 {[%emt 0:00:43]} 42. Ne1 {[%emt 0:00:38]} Bf4 {[%emt 0:01:08]} 43. Nf3 {[%emt 0:00:21]} e5 {[%emt 0:01:09]} 44. Kf2 {[%emt 0:00:16]} e4 {[%emt 0:00:59]} 45. g6 {[%emt 0:02:20]} fxg6 {[%emt 0:00:46]} 46. Ng1 {[%emt 0:00:16]} Bxh2 {[%emt 0:00:28]} 47. Nxh3 {[%emt 0:00:01]} Be5 {[%emt 0:00:14]} 48. Ng5 {[%emt 0:00:39]} Bd4+ {[%emt 0:00:49]} 49. Ke2 {[%emt 0:00:14]} Kd5 {[%emt 0:00:23]} 50. Nh3 {[%emt 0:00:37]} Bb2 {[%emt 0:01:46]} 51. Nf4+ {[%emt 0:00:13]} Kc4 {[%emt 0:01:01]} 52. Nxg6 {[%emt 0:00:15]} Bxa3 {[%emt 0:00:16]} 53. Ke3 {[%emt 0:00:12]} Bxb4 {[%emt 0:00:20]} 54. Kxe4 {[%emt 0:00:19]} Bc3 {[%emt 0:00:10]} 55. Ne7 {[%emt 0:00:38]} b4 {[%emt 0:00:27]} 56. Nd5 {[%emt 0:00:19]} a5 {[%emt 0:01:17]} 57. Ne3+ {[%emt 0:00:30]} Kb3 {[%emt 0:00:17]} 58. Kd3 {[%emt 0:00:10]} a4 {[%emt 0:00:22] Kd4} 0-1

[Event "FIDE WCCC G10 2018"]
[Site "Santiago de Compostela"]
[Date "2018.11.08"]
[Round "4"]
[White "Shvedova, Alexandra"]
[Black "Chen, Yining"]
[Result "1/2-1/2"]
[ECO "B01"]
[WhiteElo "1782"]
[BlackElo "1457"]
[Annotator "NA RC"]
[PlyCount "78"]
[EventDate "2018.11.04"]
[EventType "swiss"]
[EventCountry "ESP"]
[SourceTitle "playchess.com"]
[Source "ChessBase"]
[SourceQuality "1"]
[TimeControl "40/5400+30:1800+30"]

1. e4 {[%emt 0:00:00]} d5 {[%emt 0:00:00]} 2. exd5 {[%emt 0:00:00]} Nf6 {[%emt 0:00:00]} 3. d4 {[%emt 0:00:01]} Nxd5 {[%emt 0:00:00]} 4. c4 {[%emt 0:00:33]} Nb6 {[%emt 0:00:00]} 5. Nf3 {[%emt 0:01:00]} Bg4 {[%emt 0:00:00]} 6. Be2 {[%emt 0:00:46]} e6 {[%emt 0:00:00]} 7. O-O {[%emt 0:01:40]} Be7 {[%emt 0:00:04]} 8. Nc3 {[%emt 0:05:58]} O-O {[%emt 0:00:15]} 9. b3 {[%emt 0:03:12]} Nc6 {[%emt 0:01:14]} 10. Be3 {[%emt 0:04:34]} Bf6 {[%emt 0:01:42]} 11. Ne4 {[%emt 0:00:26]} Be7 {[%emt 0:03:49]} 12. Qd2 {[%emt 0:06:32]} a5 {[%emt 0:03:00]} 13. Rfd1 {[%emt 0:04:08]} a4 {[%emt 0:08:20]} 14. Qb2 {[%emt 0:02:10]} axb3 {[%emt 0:08:06]} 15. axb3 {[%emt 0:00:10]} Rxa1 {[%emt 0:00:18]} 16. Qxa1 {[%emt 0:02:11]} Bb4 {[%emt 0:02:59]} 17. d5 {[%emt 0:12:07]} exd5 {[%emt 0:00:56]} 18. Bxb6 {[%emt 0:00:17]} cxb6 {[%emt 0:00:19]} 19. Rxd5 {[%emt 0:01:28]} Qa8 {[%emt 0:01:01]} 20. Nf6+ {[%emt 0:11:47]} gxf6 {[%emt 0:05:22]} 21. Qxf6 {[%emt 0:00:06]} Ne7 {[%emt 0:22:53]} 22. Rg5+ {[%emt 0:02:51]} Ng6 {[%emt 0:00:08]} 23. Rxg4 {[%emt 0:00:48]} Qd8 {[%emt 0:04:51]} 24. Qb2 {[%emt 0:06:37]} Bc5 {[%emt 0:12:18]} 25. Nh4 {[%emt 0:08:21]} Be7 {[%emt 0:06:22]} 26. Nxg6 {[%emt 0:05:27]} fxg6 {[%emt 0:01:03]} 27. Bf3 {[%emt 0:02:53]} Bf6 {[%emt 0:00:56]} 28. Qb1 {[%emt 0:00:49]} Qe7 {[%emt 0:05:32]} 29. Re4 {[%emt 0:02:40]} Qc7 {[%emt 0:01:51]} 30. Re1 {[%emt 0:01:27]} Bd4 {[%emt 0:01:54]} 31. Qe4 {[%emt 0:02:01]} Qc5 {[%emt 0:01:21]} 32. Rf1 {[%emt 0:02:31]} Ra8 {[%emt 0:02:59]} 33. Qd5+ {[%emt 0:01:45]} Kh8 {[%emt 0:02:08]} 34. Qxc5 {[%emt 0:05:37]} bxc5 {[%emt 0:00:16]} 35. Bxb7 {[%emt 0:00:33]} Rb8 {[%emt 0:00:31]} 36. Bd5 {[%emt 0:00:10]} Rxb3 {[%emt 0:00:07]} 37. g4 {[%emt 0:01:08]} g5 {[%emt 0:00:44]} 38. Kg2 {[%emt 0:00:22]} Rb2 {[%emt 0:00:14]} 39. Kg3 {[%emt 0:00:50]} Rb3+ {[%emt 0:00:58]} 1/2-1/2

[Event "FIDE WCCC G10 2018"]
[Site "Santiago de Compostela"]
[Date "2018.11.08"]
[Round "4"]
[White "Zhou, Yafei"]
[Black "Ho, Ngoc Vy"]
[Result "1-0"]
[ECO "D43"]
[WhiteElo "1648"]
[BlackElo "1275"]
[Annotator "NA"]
[PlyCount "115"]
[EventDate "2018.11.04"]
[EventType "swiss"]
[EventCountry "ESP"]
[SourceTitle "playchess.com"]
[Source "ChessBase"]
[SourceQuality "1"]
[TimeControl "40/5400+30:1800+30"]

1. d4 {[%emt 0:00:00]} d5 {[%emt 0:00:10]} 2. c4 {[%emt 0:00:00]} c6 {[%emt 0:01:01]} 3. Nf3 {[%emt 0:00:00]} Nf6 {[%emt 0:00:36]} 4. Nc3 {[%emt 0:00:00]} e6 {[%emt 0:00:58]} 5. Bg5 {[%emt 0:00:00]} Be7 {[%emt 0:01:21]} 6. e3 {[%emt 0:00:04]} Nbd7 {[%emt 0:01:57]} 7. Qc2 {[%emt 0:01:01]} O-O {[%emt 0:02:37]} 8. Bd3 {[%emt 0:00:07]} h6 {[%emt 0:00:33]} 9. Bh4 {[%emt 0:00:09]} b6 {[%emt 0:04:30]} 10. O-O {[%emt 0:00:52]} Bb7 {[%emt 0:04:15]} 11. Rfd1 {[%emt 0:03:17]} Qc7 {[%emt 0:05:48]} 12. cxd5 {[%emt 0:03:00]} exd5 {[%emt 0:01:51]} 13. Rac1 {[%emt 0:00:38]} c5 {[%emt 0:06:05]} 14. Bf5 {[%emt 0:02:19]} Rfe8 {[%emt 0:06:41]} 15. dxc5 {[%emt 0:09:37]} Qxc5 {[%emt 0:03:05]} 16. Qb3 {[%emt 0:04:09]} Qb4 {[%emt 0:04:40]} 17. Qxb4 {[%emt 0:01:05]} Bxb4 {[%emt 0:00:19]} 18. Bxd7 {[%emt 0:01:00]} Nxd7 {[%emt 0:01:24]} 19. Nxd5 {[%emt 0:01:01]} Bxd5 {[%emt 0:05:09]} 20. Rxd5 {[%emt 0:00:06]} Nc5 {[%emt 0:04:58]} 21. a3 {[%emt 0:04:51]} Nb3 {[%emt 0:00:10]} 22. Rcd1 {[%emt 0:00:21]} Be7 {[%emt 0:02:30]} 23. Bxe7 {[%emt 0:00:11]} Rxe7 {[%emt 0:00:06]} 24. g3 {[%emt 0:01:39]} Rc7 {[%emt 0:00:51]} 25. R5d3 {[%emt 0:04:21]} Nc1 {[%emt 0:01:17]} 26. Rd7 {[%emt 0:07:55]} Rac8 {[%emt 0:00:56]} 27. Rxc7 {[%emt 0:00:38]} Rxc7 {[%emt 0:00:10]} 28. Nd4 {[%emt 0:00:28]} Rc4 {[%emt 0:01:24]} 29. Kf1 {[%emt 0:00:54]} b5 {[%emt 0:03:49]} 30. Ke1 {[%emt 0:05:31]} Na2 {[%emt 0:05:24]} 31. Ra1 {[%emt 0:02:15]} Nc1 {[%emt 0:00:13]} 32. Kd2 {[%emt 0:05:08]} Rxd4+ {[%emt 0:00:13]} 33. Kxc1 {[%emt 0:00:04]} Rd5 {[%emt 0:00:27]} 34. Kc2 {[%emt 0:00:17]} Kf8 {[%emt 0:00:12]} 35. Rd1 {[%emt 0:00:16]} Rc5+ {[%emt 0:00:11]} 36. Kb3 {[%emt 0:00:21]} a5 {[%emt 0:00:33]} 37. Rd2 {[%emt 0:01:02]} Rc4 {[%emt 0:01:01]} 38. Ka2 {[%emt 0:01:47]} Ke7 {[%emt 0:01:34]} 39. b3 {[%emt 0:01:12]} Rc6 {[%emt 0:00:14]} 40. Kb2 {[%emt 0:00:00]} Ke6 {[%emt 0:00:00]} 41. f4 {[%emt 0:02:58]} g6 {[%emt 0:00:55]} 42. Rd8 {[%emt 0:01:38]} Kf5 {[%emt 0:09:46]} 43. Rd5+ {[%emt 0:02:57]} Ke4 {[%emt 0:00:11]} 44. Rxb5 {[%emt 0:00:18]} Kf3 {[%emt 0:06:15]} 45. Rxa5 {[%emt 0:00:25]} Kg2 {[%emt 0:00:11]} 46. Ra7 {[%emt 0:03:21]} f5 {[%emt 0:00:48]} 47. b4 {[%emt 0:00:31]} Kxh2 {[%emt 0:00:08]} 48. b5 {[%emt 0:00:21]} Rb6 {[%emt 0:00:05]} 49. a4 {[%emt 0:00:17]} Kxg3 {[%emt 0:00:11]} 50. Ra6 {[%emt 0:00:23]} Rb8 {[%emt 0:00:07]} 51. Rxg6+ {[%emt 0:00:15]} Kf3 {[%emt 0:00:25]} 52. Rxh6 {[%emt 0:00:30]} Kxe3 {[%emt 0:00:05]} 53. b6 {[%emt 0:02:07]} Kd4 {[%emt 0:04:42]} 54. a5 {[%emt 0:02:51]} Kc5 {[%emt 0:00:45]} 55. a6 {[%emt 0:02:37]} Rxb6+ {[%emt 0:00:49]} 56. Rxb6 {[%emt 0:00:04]} Kxb6 {[%emt 0:00:11]} 57. Kc3 {[%emt 0:00:01]} Kxa6 {[%emt 0:00:08]} 58. Kd4 1-0

[Event "FIDE WCCC G10 2018"]
[Site "Santiago de Compostela"]
[Date "2018.11.08"]
[Round "4"]
[White "Rouda Essa, Alserkal"]
[Black "Kleymenova, Valeria"]
[Result "0-1"]
[ECO "C05"]
[WhiteElo "1635"]
[BlackElo "1773"]
[Annotator "NA RC"]
[PlyCount "100"]
[EventDate "2018.11.04"]
[EventType "swiss"]
[EventCountry "ESP"]
[SourceTitle "playchess.com"]
[Source "ChessBase"]
[SourceQuality "1"]
[TimeControl "40/5400+30:1800+30"]

1. e4 {[%emt 0:00:00]} e6 {[%emt 0:00:00]} 2. d4 {[%emt 0:00:00]} d5 {[%emt 0:00:00]} 3. Nd2 {[%emt 0:00:12]} Nf6 {[%emt 0:00:09]} 4. e5 {[%emt 0:00:33]} Nfd7 {[%emt 0:00:18]} 5. Bd3 {[%emt 0:00:29]} c5 {[%emt 0:00:21]} 6. c3 {[%emt 0:00:39]} Nc6 {[%emt 0:00:22]} 7. Ngf3 {[%emt 0:00:27]} Qb6 {[%emt 0:00:33]} 8. O-O {[%emt 0:00:11]} Be7 {[%emt 0:03:00]} 9. dxc5 {[%emt 0:03:10]} Nxc5 {[%emt 0:05:31]} 10. Bc2 {[%emt 0:00:37]} Qc7 {[%emt 0:04:18]} 11. Qe2 {[%emt 0:02:10]} b6 {[%emt 0:01:51]} 12. b4 {[%emt 0:05:29]} Nd7 {[%emt 0:06:17]} 13. Re1 {[%emt 0:00:18]} Nxb4 {[%emt 0:04:12]} 14. cxb4 {[%emt 0:08:53]} Qxc2 {[%emt 0:00:14]} 15. Nd4 {[%emt 0:01:02]} Qg6 {[%emt 0:03:27]} 16. Nc6 {[%emt 0:00:58]} Bg5 {[%emt 0:16:37]} 17. Nf3 {[%emt 0:07:08]} Bxc1 {[%emt 0:01:48]} 18. Raxc1 {[%emt 0:00:09]} Bb7 {[%emt 0:02:54]} 19. Ncd4 {[%emt 0:02:20]} O-O {[%emt 0:10:53]} 20. Rc7 {[%emt 0:01:30]} Bc8 {[%emt 0:01:43]} 21. Nc6 {[%emt 0:00:56]} Re8 {[%emt 0:01:55]} 22. Nxa7 {[%emt 0:00:34]} Nf8 {[%emt 0:02:14]} 23. Rec1 {[%emt 0:13:35]} Bd7 {[%emt 0:01:10]} 24. Qc2 {[%emt 0:02:18]} Qh6 {[%emt 0:01:43]} 25. Qd2 {[%emt 0:05:48]} Qg6 {[%emt 0:01:21]} 26. Qd4 {[%emt 0:04:35]} Reb8 {[%emt 0:01:24]} 27. h3 {[%emt 0:01:33]} h6 {[%emt 0:00:59]} 28. Ne1 {[%emt 0:05:06]} Qg5 {[%emt 0:01:03]} 29. Qe3 {[%emt 0:02:27]} Qg6 {[%emt 0:01:38]} 30. Nd3 {[%emt 0:00:28]} Rd8 {[%emt 0:01:42]} 31. Qd4 {[%emt 0:11:46]} Nh7 {[%emt 0:01:51]} 32. Nb2 {[%emt 0:07:47]} Ng5 {[%emt 0:01:42]} 33. Kh2 {[%emt 0:00:12]} Qf5 {[%emt 0:05:06]} 34. b5 {[%emt 0:01:35]} Ne4 {[%emt 0:00:58]} 35. R1c2 {[%emt 0:02:24]} Nc5 {[%emt 0:02:26]} 36. Rc1 {[%emt 0:01:00]} Be8 {[%emt 0:01:52]} 37. g4 {[%emt 0:02:47]} Qg6 {[%emt 0:03:42]} 38. Na4 {[%emt 0:00:40]} Nxa4 {[%emt 0:02:47]} 39. Qxa4 {[%emt 0:00:07]} d4 {[%emt 0:00:39]} 40. Qb4 {[%emt 0:00:00]} Qe4 {[%emt 0:00:00]} 41. Re1 {[%emt 0:05:24]} Qf4+ {[%emt 0:01:17]} 42. Kg1 {[%emt 0:00:15]} Qf3 {[%emt 0:11:25]} 43. Qb3 {[%emt 0:02:49]} d3 {[%emt 0:00:58]} 44. Re3 {[%emt 0:00:49]} Qd5 {[%emt 0:00:57]} 45. Qd1 {[%emt 0:00:39]} d2 {[%emt 0:06:50]} 46. a4 {[%emt 0:00:47]} Rxa7 {[%emt 0:02:12]} 47. Rxa7 {[%emt 0:00:25]} Rc8 {[%emt 0:00:05]} 48. Kh2 {[%emt 0:00:55]} Rc1 {[%emt 0:00:19]} 49. Qf3 {[%emt 0:00:28]} Qxf3 {[%emt 0:00:12]} 50. Rxf3 {[%emt 0:00:06]} d1=Q {[%emt 0:00:09]} 0-1

[Event "FIDE WCCC G10 2018"]
[Site "Santiago de Compostela"]
[Date "2018.11.08"]
[Round "4"]
[White "Gupta, Sara"]
[Black "Chekhani, Anna"]
[Result "0-1"]
[ECO "B20"]
[WhiteElo "1561"]
[BlackElo "1288"]
[Annotator "NA RC"]
[PlyCount "48"]
[EventDate "2018.11.04"]
[EventType "swiss"]
[EventCountry "ESP"]
[SourceTitle "playchess.com"]
[Source "ChessBase"]
[SourceQuality "1"]
[TimeControl "40/5400+30:1800+30"]

1. e4 {[%emt 0:00:00]} c5 {[%emt 0:00:00]} 2. b3 {[%emt 0:01:09]} Nc6 {[%emt 0:16:12]} 3. Bb2 {[%emt 0:00:42]} Qc7 {[%emt 0:07:35]} 4. Nf3 {[%emt 0:03:08]} d6 {[%emt 0:00:22]} 5. Bb5 {[%emt 0:03:27]} Bd7 {[%emt 0:06:14]} 6. O-O {[%emt 0:02:53]} Nf6 {[%emt 0:03:06]} 7. d3 {[%emt 0:03:50]} e6 {[%emt 0:03:17]} 8. Nbd2 {[%emt 0:04:59]} O-O-O {[%emt 0:09:43]} 9. Qe2 {[%emt 0:04:58]} Rg8 {[%emt 0:05:27]} 10. a3 {[%emt 0:06:03]} a6 {[%emt 0:04:52]} 11. Bxc6 {[%emt 0:00:53]} Bxc6 {[%emt 0:00:05]} 12. b4 {[%emt 0:03:44]} Nd7 {[%emt 0:04:15]} 13. Rfb1 d5 {[%emt 0:04:50]} 14. exd5 {[%emt 0:22:10]} Bxd5 {[%emt 0:00:58]} 15. c4 {[%emt 0:03:53]} Bxf3 {[%emt 0:04:49]} 16. Nxf3 {[%emt 0:01:08]} cxb4 {[%emt 0:01:16]} 17. axb4 {[%emt 0:00:42]} Bxb4 {[%emt 0:00:26]} 18. Bxg7 {[%emt 0:00:36]} Rxg7 {[%emt 0:01:37]} 19. Rxb4 {[%emt 0:00:22]} Rdg8 {[%emt 0:02:17]} 20. Qf1 {[%emt 0:03:13]} Ne5 {[%emt 0:02:54]} 21. Nxe5 {[%emt 0:01:22]} Qxe5 {[%emt 0:00:05]} 22. Rab1 {[%emt 0:01:40]} f5 {[%emt 0:01:19]} 23. Re1 {[%emt 0:04:32]} Rxg2+ {[%emt 0:00:53]} 24. Qxg2 {[%emt 0:02:28]} Qxe1# {[%emt 0:00:05]} 0-1

[Event "FIDE WCCC G10 2018"]
[Site "Santiago de Compostela"]
[Date "2018.11.08"]
[Round "4"]
[White "Da Cunha, Gabriela Goes"]
[Black "Guid, Taja"]
[Result "1/2-1/2"]
[ECO "D02"]
[WhiteElo "1464"]
[BlackElo "1280"]
[Annotator "NA RC"]
[PlyCount "45"]
[EventDate "2018.11.04"]
[EventType "swiss"]
[EventCountry "ESP"]
[SourceTitle "playchess.com"]
[Source "ChessBase"]
[SourceQuality "1"]
[TimeControl "40/5400+30:1800+30"]

1. d4 {[%emt 0:00:00]} d5 {[%emt 0:00:00]} 2. Nf3 {[%emt 0:00:00]} e6 {[%emt 0:00:53]} 3. Bf4 {[%emt 0:00:21]} Nf6 {[%emt 0:00:39]} 4. e3 {[%emt 0:00:36]} Bd6 {[%emt 0:03:41]} 5. Bg3 {[%emt 0:00:19]} O-O {[%emt 0:01:07]} 6. Nbd2 {[%emt 0:04:01]} b6 {[%emt 0:06:05]} 7. c3 {[%emt 0:03:54]} Bb7 {[%emt 0:02:13]} 8. Bd3 {[%emt 0:04:20]} Nbd7 {[%emt 0:16:39]} 9. Ne5 {[%emt 0:07:14]} Qe7 {[%emt 0:08:07]} 10. f4 {[%emt 0:11:33]} c5 {[%emt 0:05:49]} 11. Bh4 {[%emt 0:06:35]} Qe8 {[%emt 0:04:17]} 12. Nxd7 {[%emt 0:02:41]} Nxd7 {[%emt 0:01:17]} 13. Qh5 {[%emt 0:03:58]} f5 {[%emt 0:00:56]} 14. Qxe8 {[%emt 0:01:32]} Raxe8 {[%emt 0:00:27]} 15. Bb5 {[%emt 0:01:08]} Bc8 {[%emt 0:00:42]} 16. Nf3 {[%emt 0:02:52]} a6 {[%emt 0:00:48]} 17. Bc6 {[%emt 0:01:51]} Be7 {[%emt 0:03:39]} 18. Bxe7 {[%emt 0:03:09]} Rxe7 {[%emt 0:00:05]} 19. Bxd7 {[%emt 0:00:10]} Bxd7 {[%emt 0:00:22]} 20. Ne5 {[%emt 0:01:06]} Be8 {[%emt 0:04:27]} 21. a4 {[%emt 0:06:31]} a5 {[%emt 0:06:08]} 22. Kd2 {[%emt 0:05:25]} Rc7 {[%emt 0:07:22]} 23. Rhc1 {[%emt 0:04:44]} 1/2-1/2

[Event "FIDE WCCC G10 2018"]
[Site "Santiago de Compostela"]
[Date "2018.11.08"]
[Round "4"]
[White "Nguyen, Ha Khanh Linh"]
[Black "Kulish, Glafira"]
[Result "1-0"]
[ECO "E91"]
[WhiteElo "1449"]
[BlackElo "1153"]
[Annotator "NA"]
[PlyCount "87"]
[EventDate "2018.11.04"]
[EventType "swiss"]
[EventCountry "ESP"]
[SourceTitle "playchess.com"]
[Source "ChessBase"]
[SourceQuality "1"]
[TimeControl "40/5400+30:1800+30"]

1. d4 {[%emt 0:00:00]} Nf6 {[%emt 0:00:00]} 2. c4 {[%emt 0:00:00]} g6 {[%emt 0:00:00]} 3. Nc3 {[%emt 0:00:00]} Bg7 {[%emt 0:00:00]} 4. e4 {[%emt 0:00:12]} d6 {[%emt 0:00:05]} 5. Nf3 {[%emt 0:00:25]} O-O {[%emt 0:00:21]} 6. Be2 {[%emt 0:00:06]} Bg4 {[%emt 0:00:52]} 7. O-O {[%emt 0:01:47]} Bxf3 {[%emt 0:07:06]} 8. Bxf3 {[%emt 0:01:20]} e5 {[%emt 0:01:44]} 9. d5 {[%emt 0:10:48]} Nbd7 {[%emt 0:06:21]} 10. b4 {[%emt 0:01:24]} Ne8 {[%emt 0:13:02]} 11. Be2 {[%emt 0:02:43]} f5 {[%emt 0:02:49]} 12. f3 {[%emt 0:00:40]} f4 {[%emt 0:04:49]} 13. c5 {[%emt 0:03:04]} dxc5 {[%emt 0:02:00]} 14. bxc5 {[%emt 0:00:04]} Nxc5 {[%emt 0:07:31]} 15. Ba3 {[%emt 0:02:36]} b6 {[%emt 0:02:59]} 16. Bxc5 {[%emt 0:00:50]} bxc5 {[%emt 0:00:14]} 17. Rc1 {[%emt 0:00:18]} Rf6 {[%emt 0:12:26]} 18. Na4 {[%emt 0:03:17]} Bf8 {[%emt 0:00:36]} 19. Nxc5 {[%emt 0:03:13]} Bxc5+ {[%emt 0:00:42]} 20. Rxc5 {[%emt 0:00:29]} Rb6 {[%emt 0:01:33]} 21. Bc4 {[%emt 0:08:32]} Nd6 {[%emt 0:01:14]} 22. Bb3 {[%emt 0:01:05]} Rab8 {[%emt 0:02:29]} 23. Qc2 {[%emt 0:06:19]} R6b7 {[%emt 0:05:57]} 24. Rc1 {[%emt 0:01:25]} Rc8 {[%emt 0:00:23]} 25. Rc6 {[%emt 0:02:29]} Kf8 {[%emt 0:02:27]} 26. Qc5 {[%emt 0:01:14]} Ke7 {[%emt 0:04:30]} 27. Bc4 {[%emt 0:05:24]} Rb6 {[%emt 0:08:48]} 28. Ba6 {[%emt 0:01:41]} Rxc6 {[%emt 0:03:07]} 29. dxc6 {[%emt 0:06:04]} Kf6 {[%emt 0:03:17]} 30. Bxc8 {[%emt 0:00:19]} Nxc8 {[%emt 0:00:19]} 31. Qc2 {[%emt 0:05:08]} Nd6 {[%emt 0:01:04]} 32. Rb1 {[%emt 0:01:47]} Qa8 {[%emt 0:01:39]} 33. Qc5 {[%emt 0:01:13]} a6 {[%emt 0:01:30]} 34. g3 {[%emt 0:01:44]} g5 {[%emt 0:00:36]} 35. a4 {[%emt 0:01:19]} h6 {[%emt 0:01:31]} 36. Kg2 {[%emt 0:01:16]} Ke6 {[%emt 0:01:33]} 37. Rd1 {[%emt 0:03:08]} Qe8 {[%emt 0:01:18]} 38. Rd5 {[%emt 0:00:34]} Nf7 {[%emt 0:01:30]} 39. Rd7 {[%emt 0:00:35]} Nd6 {[%emt 0:00:28]} 40. Qd5+ {[%emt 0:00:00]} Kf6 {[%emt 0:00:00]} 41. Rxd6+ {[%emt 0:01:18]} cxd6 {[%emt 0:00:40]} 42. Qxd6+ {[%emt 0:00:03]} Qe6 {[%emt 0:01:00]} 43. Qf8+ {[%emt 0:01:20]} Kg6 {[%emt 0:01:42]} 44. Qf5+ 1-0